[Event "Late-Titled-Tuesday-Blitz-August-29-2023"]
[Site "Chess.com"]
[Date "2023.08.29"]
[Round "10"]
[White "rasmussvane"]
[Black "Zkid"]
[Result "0-1"]
[WhiteElo "2962"]
[BlackElo "2853"]
[TimeControl "180+1"]
[EndTime "15:54:20 PDT"]
[Termination "Zkid won by resignation"]

1. Nf3 {[%clk 0:02:59]} 1... d5 {[%clk 0:02:59.8]} 2. g3 {[%clk 0:02:58.9]} 2...
Nf6 {[%clk 0:02:59]} 3. Bg2 {[%clk 0:02:59.5]} 3... c6 {[%clk 0:02:59.7]} 4. O-O
{[%clk 0:03:00.1]} 4... Bg4 {[%clk 0:03:00.3]} 5. h3 {[%clk 0:03:00.7]} 5... Bh5
{[%clk 0:03:00.2]} 6. d4 {[%clk 0:03:01]} 6... Nbd7 {[%clk 0:03:00.1]} 7. c4
{[%clk 0:03:01.6]} 7... e6 {[%clk 0:03:00.4]} 8. cxd5 {[%clk 0:03:00.8]} 8...
exd5 {[%clk 0:03:00.5]} 9. Ne5 {[%clk 0:03:00.4]} 9... Bd6 {[%clk 0:02:54.1]}
10. f4 {[%clk 0:02:58.6]} 10... Bxe5 {[%clk 0:02:46.8]} 11. dxe5 {[%clk
0:02:55.7]} 11... Ne4 {[%clk 0:02:46.9]} 12. g4 {[%clk 0:02:48.1]} 12... Bg6
{[%clk 0:02:45.4]} 13. f5 {[%clk 0:02:46.9]} 13... Nxe5 {[%clk 0:02:45.5]} 14.
Qd4 {[%clk 0:02:33.9]} 14... Qf6 {[%clk 0:02:37.6]} 15. e3 {[%clk 0:02:15]}
15... Ng3 {[%clk 0:02:34.3]} 16. Rf2 {[%clk 0:02:09.9]} 16... Bxf5 {[%clk
0:02:32.4]} 17. gxf5 {[%clk 0:02:04.2]} 17... Nxf5 {[%clk 0:02:29.4]} 18. Qf4
{[%clk 0:02:01.2]} 18... g6 {[%clk 0:02:26.3]} 19. Re2 {[%clk 0:01:27.7]} 19...
Nd3 {[%clk 0:02:23.3]} 20. Qf1 {[%clk 0:01:25.9]} 20... Qh4 {[%clk 0:02:14.5]}
21. Rd2 {[%clk 0:00:58.7]} 21... Nxc1 {[%clk 0:02:09.1]} 22. Qxc1 {[%clk
0:00:59.6]} 22... O-O {[%clk 0:02:05.4]} 23. Re2 {[%clk 0:00:58.5]} 23... Rfe8
{[%clk 0:02:03.7]} 24. Nc3 {[%clk 0:00:57.4]} 24... Re5 {[%clk 0:01:43.5]} 25.
Qd2 {[%clk 0:00:53.1]} 25... Rae8 {[%clk 0:01:41.7]} 26. Rae1 {[%clk 0:00:53.2]}
26... Ng3 {[%clk 0:01:38.4]} 27. Rf2 {[%clk 0:00:52.5]} 27... d4 {[%clk
0:01:38]} 28. Nd1 {[%clk 0:00:48.4]} 28... dxe3 {[%clk 0:01:32.2]} 29. Rxe3
{[%clk 0:00:47]} 29... Rd8 {[%clk 0:01:18.5]} 30. Rxe5 {[%clk 0:00:33.4]} 30...
Rxd2 {[%clk 0:01:17.9]} 31. Rxd2 {[%clk 0:00:34.3]} 31... Qf4 {[%clk 0:01:17.1]}
32. Re3 {[%clk 0:00:34.3]} 32... Nf5 {[%clk 0:01:15.3]} 33. Red3 {[%clk
0:00:34.3]} 33... Nh4 {[%clk 0:01:09.7]} 34. Nc3 {[%clk 0:00:25]} 34... Qe5
{[%clk 0:01:07.6]} 35. Re2 {[%clk 0:00:22.9]} 35... Qc5+ {[%clk 0:01:07.3]} 36.
Rf2 {[%clk 0:00:20.1]} 36... f5 {[%clk 0:01:03.2]} 37. Rd1 {[%clk 0:00:16.1]}
37... f4 {[%clk 0:01:00.8]} 38. Kf1 {[%clk 0:00:09.1]} 38... Qf5 {[%clk
0:00:50.6]} 39. Rd4 {[%clk 0:00:04.9]} 39... g5 {[%clk 0:00:46.1]} 40. Bf3
{[%clk 0:00:02.2]} 40... Qxh3+ {[%clk 0:00:43.9]} 41. Ke2 {[%clk 0:00:02.8]}
41... g4 {[%clk 0:00:41.2]} 42. Be4 {[%clk 0:00:01.9]} 42... f3+ {[%clk
0:00:39.5]} 43. Ke3 {[%clk 0:00:01.9]} 43... Ng2+ {[%clk 0:00:33]} 44. Kd2
{[%clk 0:00:01.2]} 44... Qh6+ {[%clk 0:00:32.1]} 45. Kd1 {[%clk 0:00:01.1]}
45... Qe3 {[%clk 0:00:31.4]} 46. Rdd2 {[%clk 0:00:01.3]} 46... Qe1+ {[%clk
0:00:28.9]} 47. Kc2 {[%clk 0:00:01.7]} 47... Ne3+ {[%clk 0:00:28.9]} 48. Kd3
{[%clk 0:00:02.3]} 48... Nf1 {[%clk 0:00:25.8]} 49. Rc2 {[%clk 0:00:03]} 49...
b5 {[%clk 0:00:23.8]} 50. Kd4 {[%clk 0:00:02.8]} 50... Ng3 {[%clk 0:00:19.6]}
51. b4 {[%clk 0:00:02.5]} 51... Nxe4 {[%clk 0:00:18.3]} 52. Nxe4 {[%clk
0:00:02.9]} 52... Qxb4+ {[%clk 0:00:18.6]} 53. Ke3 {[%clk 0:00:03]} 53... h5
{[%clk 0:00:16.3]} 54. Rxc6 {[%clk 0:00:03.2]} 54... Kf7 {[%clk 0:00:14.7]} 55.
Rf6+ {[%clk 0:00:03.4]} 55... Ke7 {[%clk 0:00:14.8]} 56. Rf5 {[%clk 0:00:04]}
56... h4 {[%clk 0:00:12.5]} 57. Rg5 {[%clk 0:00:04.6]} 57... Qa3+ {[%clk
0:00:11.5]} 58. Kf4 {[%clk 0:00:04.9]} 58... g3 {[%clk 0:00:09.8]} 59. Rxf3
{[%clk 0:00:05.5]} 59... Qc1+ {[%clk 0:00:10.5]} 60. Kg4 {[%clk 0:00:05.5]}
60... g2 {[%clk 0:00:08.8]} 61. Kf5 {[%clk 0:00:03]} 61... Qxg5+ {[%clk
0:00:08.3]} 62. Nxg5 {[%clk 0:00:03.4]} 62... g1=Q {[%clk 0:00:09.2]} 63. Rf4
{[%clk 0:00:03.4]} 63... Qg3 {[%clk 0:00:07.8]} 64. Rf3 {[%clk 0:00:03]} 64...
Qg2 {[%clk 0:00:07]} 65. Rg3 {[%clk 0:00:03.7]} 65... hxg3 {[%clk 0:00:06.6]}
66. Ne6 {[%clk 0:00:02.5]} 0-1

[Event "Late-Titled-Tuesday-Blitz-August-29-2023"]
[Site "Chess.com"]
[Date "2023.08.29"]
[Round "10"]
[White "Meri-Arabidze"]
[Black "Piotrek1979"]
[Result "1-0"]
[WhiteElo "2610"]
[BlackElo "2460"]
[TimeControl "180+1"]
[EndTime "15:54:20 PDT"]
[Termination "Meri-Arabidze won on time"]

1. Nf3 {[%clk 0:03:00.9]} 1... Nf6 {[%clk 0:02:58.2]} 2. b3 {[%clk 0:03:01.3]}
2... g6 {[%clk 0:02:56.7]} 3. Bb2 {[%clk 0:03:02.2]} 3... Bg7 {[%clk 0:02:56.9]}
4. g3 {[%clk 0:03:02.9]} 4... O-O {[%clk 0:02:56.9]} 5. Bg2 {[%clk 0:03:03.3]}
5... c5 {[%clk 0:02:56.9]} 6. O-O {[%clk 0:03:03.4]} 6... Nc6 {[%clk 0:02:57.1]}
7. c4 {[%clk 0:03:03.6]} 7... d6 {[%clk 0:02:55.6]} 8. e3 {[%clk 0:03:01.6]}
8... Rb8 {[%clk 0:02:51.6]} 9. d4 {[%clk 0:03:01.7]} 9... a6 {[%clk 0:02:51.5]}
10. Nc3 {[%clk 0:02:58]} 10... Bg4 {[%clk 0:02:41.1]} 11. h3 {[%clk 0:02:54.8]}
11... Bd7 {[%clk 0:02:38.3]} 12. Qd2 {[%clk 0:02:36.8]} 12... b5 {[%clk
0:02:33.4]} 13. cxb5 {[%clk 0:02:37]} 13... axb5 {[%clk 0:02:32.6]} 14. dxc5
{[%clk 0:02:37]} 14... dxc5 {[%clk 0:02:31.3]} 15. Nd5 {[%clk 0:02:27.6]} 15...
Ne4 {[%clk 0:02:27.6]} 16. Qc2 {[%clk 0:02:19.5]} 16... Bxb2 {[%clk 0:02:25.3]}
17. Qxb2 {[%clk 0:02:20.4]} 17... e6 {[%clk 0:02:24.3]} 18. Nf4 {[%clk
0:02:15.8]} 18... b4 {[%clk 0:02:13.9]} 19. Rac1 {[%clk 0:02:09.1]} 19... Qa5
{[%clk 0:01:48.2]} 20. Ne5 {[%clk 0:01:56.6]} 20... Nxe5 {[%clk 0:01:39.9]} 21.
Bxe4 {[%clk 0:01:56.3]} 21... c4 {[%clk 0:01:35.4]} 22. bxc4 {[%clk 0:01:54.7]}
22... Rfc8 {[%clk 0:01:34.9]} 23. Rfd1 {[%clk 0:01:43.1]} 23... Ba4 {[%clk
0:01:21.2]} 24. Rd4 {[%clk 0:01:42.3]} 24... b3 {[%clk 0:01:14.4]} 25. c5 {[%clk
0:01:30.9]} 25... Bc6 {[%clk 0:00:28.3]} 26. axb3 {[%clk 0:01:22.9]} 26... Bxe4
{[%clk 0:00:21.6]} 27. Rxe4 {[%clk 0:01:20.9]} 27... Nf3+ {[%clk 0:00:22.5]} 28.
Kg2 {[%clk 0:01:16.3]} 28... Nd2 {[%clk 0:00:22.1]} 29. Re5 {[%clk 0:00:45.9]}
29... Rxb3 {[%clk 0:00:17.4]} 30. Qd4 {[%clk 0:00:41]} 30... Qa8+ {[%clk
0:00:15.3]} 31. e4 {[%clk 0:00:28.1]} 31... Nf3 {[%clk 0:00:15.3]} 32. Qc4
{[%clk 0:00:20.4]} 32... Nxe5 {[%clk 0:00:12.3]} 33. Qxb3 {[%clk 0:00:20.6]}
33... Qxe4+ {[%clk 0:00:11.2]} 34. f3 {[%clk 0:00:21.2]} 34... Qd4 {[%clk
0:00:10.7]} 35. Qc3 {[%clk 0:00:18.5]} 35... Qxc3 {[%clk 0:00:01.9]} 36. Rxc3
{[%clk 0:00:19.4]} 36... g5 {[%clk 0:00:02.1]} 37. Ne2 {[%clk 0:00:19.5]} 37...
Kf8 {[%clk 0:00:02.4]} 38. f4 {[%clk 0:00:19.1]} 38... gxf4 {[%clk 0:00:01.9]}
39. gxf4 {[%clk 0:00:20]} 39... Nc6 {[%clk 0:00:02]} 40. Kf3 {[%clk 0:00:19.1]}
40... Rd8 {[%clk 0:00:02.9]} 41. Ke4 {[%clk 0:00:17.6]} 41... f5+ {[%clk
0:00:03.5]} 42. Ke3 {[%clk 0:00:17.3]} 42... Rd5 {[%clk 0:00:03.7]} 43. Nc1
{[%clk 0:00:14.7]} 43... Ke7 {[%clk 0:00:04.6]} 44. Nb3 {[%clk 0:00:14.7]} 44...
e5 {[%clk 0:00:04.8]} 45. fxe5 {[%clk 0:00:13.8]} 45... Rxe5+ {[%clk 0:00:05.7]}
46. Kf4 {[%clk 0:00:13.5]} 46... Rd5 {[%clk 0:00:06.6]} 47. Re3+ {[%clk
0:00:13.1]} 47... Kf6 {[%clk 0:00:06.6]} 48. Re8 {[%clk 0:00:12.4]} 48... Ne5
{[%clk 0:00:06.3]} 49. Rf8+ {[%clk 0:00:12.6]} 49... Ke6 {[%clk 0:00:05.2]} 50.
Re8+ {[%clk 0:00:11.9]} 50... Kf6 {[%clk 0:00:05.3]} 51. Rc8 {[%clk 0:00:08.3]}
51... Nd3+ {[%clk 0:00:03.1]} 52. Ke3 {[%clk 0:00:08.6]} 52... Ne5 {[%clk
0:00:03.7]} 53. Nd4 {[%clk 0:00:08.1]} 53... f4+ {[%clk 0:00:03.5]} 54. Ke4
{[%clk 0:00:07.5]} 54... f3 {[%clk 0:00:01.3]} 55. Kxd5 {[%clk 0:00:05.7]} 55...
f2 {[%clk 0:00:02.2]} 56. Rf8+ {[%clk 0:00:05.7]} 56... Nf7 {[%clk 0:00:03.1]}
57. c6 {[%clk 0:00:02.8]} 57... f1=Q {[%clk 0:00:02.9]} 58. c7 {[%clk
0:00:03.7]} 58... Qg2+ {[%clk 0:00:03.5]} 59. Kc5 {[%clk 0:00:03]} 59... Qb7
{[%clk 0:00:01.6]} 60. Nb5 {[%clk 0:00:01.6]} 1-0

[Event "Late-Titled-Tuesday-Blitz-August-29-2023"]
[Site "Chess.com"]
[Date "2023.08.29"]
[Round "10"]
[White "Beca95"]
[Black "FairChess_on_YouTube"]
[Result "1-0"]
[WhiteElo "2978"]
[BlackElo "3058"]
[TimeControl "180+1"]
[EndTime "15:54:21 PDT"]
[Termination "Beca95 won by resignation"]

1. d4 {[%clk 0:03:00.9]} 1... Nf6 {[%clk 0:03:00.4]} 2. c4 {[%clk 0:03:00.2]}
2... e6 {[%clk 0:03:01]} 3. Nc3 {[%clk 0:02:59.1]} 3... d5 {[%clk 0:03:00.1]} 4.
Nf3 {[%clk 0:02:58.2]} 4... Nbd7 {[%clk 0:02:58.4]} 5. cxd5 {[%clk 0:02:52.5]}
5... exd5 {[%clk 0:02:59.3]} 6. Bf4 {[%clk 0:02:52]} 6... c6 {[%clk 0:02:59.6]}
7. Qc2 {[%clk 0:02:49.9]} 7... Nh5 {[%clk 0:02:54.9]} 8. Bd2 {[%clk 0:02:48.2]}
8... Be7 {[%clk 0:02:51.9]} 9. g4 {[%clk 0:02:46.5]} 9... Nhf6 {[%clk
0:02:51.5]} 10. g5 {[%clk 0:02:46.9]} 10... Nh5 {[%clk 0:02:51.1]} 11. h4 {[%clk
0:02:46]} 11... Nb6 {[%clk 0:02:45.4]} 12. Ne5 {[%clk 0:02:22.6]} 12... O-O
{[%clk 0:02:44.6]} 13. e3 {[%clk 0:02:19.9]} 13... g6 {[%clk 0:02:39.6]} 14. Bd3
{[%clk 0:01:52.2]} 14... Bd6 {[%clk 0:02:39.7]} 15. f4 {[%clk 0:01:41.7]} 15...
Ng3 {[%clk 0:02:17.8]} 16. Rg1 {[%clk 0:01:38.7]} 16... Nf5 {[%clk 0:02:18]} 17.
h5 {[%clk 0:01:38.5]} 17... c5 {[%clk 0:02:17.5]} 18. hxg6 {[%clk 0:01:35]}
18... fxg6 {[%clk 0:02:05.3]} 19. Nb5 {[%clk 0:01:01.7]} 19... cxd4 {[%clk
0:02:01.9]} 20. exd4 {[%clk 0:00:55.3]} 20... Be6 {[%clk 0:02:01.7]} 21. Nxd6
{[%clk 0:00:53.9]} 21... Qxd6 {[%clk 0:01:55.2]} 22. Bc3 {[%clk 0:00:53.9]}
22... Rac8 {[%clk 0:01:30.5]} 23. Qd2 {[%clk 0:00:50.4]} 23... Na4 {[%clk
0:01:17.4]} 24. Bb4 {[%clk 0:00:48.3]} 24... Qb6 {[%clk 0:01:17.3]} 25. Bxf8
{[%clk 0:00:44.8]} 25... Nxd4 {[%clk 0:00:55.6]} 26. Rh1 {[%clk 0:00:21.7]}
26... Rxf8 {[%clk 0:00:42.5]} 27. Rc1 {[%clk 0:00:18.8]} 27... Nxb2 {[%clk
0:00:38.2]} 28. Rb1 {[%clk 0:00:13.1]} 28... Nxd3+ {[%clk 0:00:28.3]} 29. Qxd3
{[%clk 0:00:14]} 29... Qa5+ {[%clk 0:00:15.3]} 30. Qd2 {[%clk 0:00:13.8]} 30...
Qa4 {[%clk 0:00:04.8]} 31. Rc1 {[%clk 0:00:12.6]} 31... Rxf4 {[%clk 0:00:04.5]}
32. Rc7 {[%clk 0:00:05.8]} 32... Re4+ {[%clk 0:00:04]} 33. Kf2 {[%clk
0:00:06.1]} 33... Rxe5 {[%clk 0:00:04.3]} 34. Rhxh7 {[%clk 0:00:05.4]} 34...
Re2+ {[%clk 0:00:04.2]} 35. Qxe2 {[%clk 0:00:05]} 35... Nxe2 {[%clk 0:00:05.1]}
36. Rcg7+ {[%clk 0:00:04.3]} 36... Kf8 {[%clk 0:00:05]} 37. Rxb7 {[%clk
0:00:05]} 37... Nf4 {[%clk 0:00:03]} 38. Rb8+ {[%clk 0:00:03.7]} 38... Qe8
{[%clk 0:00:03.6]} 39. Rh8+ {[%clk 0:00:04]} 39... Kf7 {[%clk 0:00:04]} 40.
Rhxe8 {[%clk 0:00:02.4]} 40... d4 {[%clk 0:00:04.3]} 41. Kf3 {[%clk 0:00:02.7]}
41... Nd3 {[%clk 0:00:03.3]} 42. Rxe6 {[%clk 0:00:03.3]} 42... Kxe6 {[%clk
0:00:02.9]} 43. Ra8 {[%clk 0:00:04]} 43... Kf5 {[%clk 0:00:02.7]} 44. Rxa7
{[%clk 0:00:02.9]} 44... Ne5+ {[%clk 0:00:03.3]} 45. Kg3 {[%clk 0:00:03.3]}
45... Kxg5 {[%clk 0:00:03.7]} 46. a4 {[%clk 0:00:03.6]} 46... d3 {[%clk
0:00:03.2]} 47. Kf2 {[%clk 0:00:03.8]} 47... Kf4 {[%clk 0:00:03.2]} 48. Re7
{[%clk 0:00:03.6]} 48... Ke4 {[%clk 0:00:02.3]} 49. a5 {[%clk 0:00:03.8]} 49...
Kd5 {[%clk 0:00:02.9]} 50. a6 {[%clk 0:00:04.1]} 50... Ng4+ {[%clk 0:00:02.9]}
51. Ke1 {[%clk 0:00:03.4]} 51... Kd6 {[%clk 0:00:03.4]} 52. a7 {[%clk
0:00:03.5]} 52... Kxe7 {[%clk 0:00:04]} 53. a8=Q {[%clk 0:00:03.9]} 53... Kf6
{[%clk 0:00:04.8]} 54. Qf3+ {[%clk 0:00:04]} 54... Kg5 {[%clk 0:00:04.9]} 55.
Qxd3 {[%clk 0:00:04.6]} 55... Ne5 {[%clk 0:00:05.3]} 56. Qe4 {[%clk 0:00:04.8]}
56... Ng4 {[%clk 0:00:04.9]} 57. Kf1 {[%clk 0:00:04.4]} 57... Nf6 {[%clk
0:00:04]} 58. Qe5+ {[%clk 0:00:04.7]} 1-0

[Event "Late-Titled-Tuesday-Blitz-August-29-2023"]
[Site "Chess.com"]
[Date "2023.08.29"]
[Round "10"]
[White "JoakimVonAnd"]
[Black "Alphafischer2019"]
[Result "1/2-1/2"]
[WhiteElo "2733"]
[BlackElo "2554"]
[TimeControl "180+1"]
[EndTime "15:54:21 PDT"]
[Termination "Game drawn - insufficient material"]

1. c4 {[%clk 0:03:00.9]} 1... Nf6 {[%clk 0:02:56.7]} 2. Nf3 {[%clk 0:02:58.8]}
2... b6 {[%clk 0:02:56.7]} 3. g3 {[%clk 0:02:58.8]} 3... Bb7 {[%clk 0:02:57.2]}
4. Bg2 {[%clk 0:02:59.4]} 4... g6 {[%clk 0:02:57.9]} 5. d4 {[%clk 0:02:59.7]}
5... Bg7 {[%clk 0:02:57.9]} 6. O-O {[%clk 0:03:00.1]} 6... O-O {[%clk
0:02:57.8]} 7. Re1 {[%clk 0:02:49.6]} 7... d6 {[%clk 0:02:49]} 8. b3 {[%clk
0:02:36.3]} 8... Nbd7 {[%clk 0:02:47.5]} 9. Bb2 {[%clk 0:02:36.5]} 9... Re8
{[%clk 0:02:36]} 10. Nc3 {[%clk 0:02:33.2]} 10... Ne4 {[%clk 0:02:35.1]} 11. Qc2
{[%clk 0:02:32.6]} 11... Nxc3 {[%clk 0:02:35]} 12. Bxc3 {[%clk 0:02:33.5]} 12...
a5 {[%clk 0:01:59.5]} 13. Rad1 {[%clk 0:02:30]} 13... a4 {[%clk 0:01:53.9]} 14.
d5 {[%clk 0:02:25.4]} 14... axb3 {[%clk 0:01:53.1]} 15. axb3 {[%clk 0:02:25.4]}
15... Bxc3 {[%clk 0:01:36.4]} 16. Qxc3 {[%clk 0:02:26.3]} 16... e5 {[%clk
0:01:35.4]} 17. b4 {[%clk 0:02:18.6]} 17... Qe7 {[%clk 0:01:33.1]} 18. Ra1
{[%clk 0:02:16.1]} 18... f5 {[%clk 0:01:32.1]} 19. Nd2 {[%clk 0:02:08.4]} 19...
Rxa1 {[%clk 0:01:22]} 20. Rxa1 {[%clk 0:02:08]} 20... Ra8 {[%clk 0:01:22.9]} 21.
Rxa8+ {[%clk 0:02:07.9]} 21... Bxa8 {[%clk 0:01:23.8]} 22. Qa3 {[%clk 0:02:07]}
22... Qf8 {[%clk 0:01:21.6]} 23. Nb3 {[%clk 0:02:05.7]} 23... Bb7 {[%clk
0:01:22]} 24. e4 {[%clk 0:01:59.3]} 24... fxe4 {[%clk 0:01:18.5]} 25. Bxe4
{[%clk 0:01:55.5]} 25... Qa8 {[%clk 0:01:18.2]} 26. Qxa8+ {[%clk 0:01:54.2]}
26... Bxa8 {[%clk 0:01:19.1]} 27. Bg2 {[%clk 0:01:54.3]} 27... Bb7 {[%clk
0:01:19.2]} 28. Bh3 {[%clk 0:01:54.3]} 28... Nf6 {[%clk 0:01:19.4]} 29. Be6+
{[%clk 0:01:52.8]} 29... Kf8 {[%clk 0:01:19.8]} 30. Kf1 {[%clk 0:01:53.1]} 30...
Ke7 {[%clk 0:01:20.4]} 31. Ke2 {[%clk 0:01:52.9]} 31... Ba6 {[%clk 0:01:21.1]}
32. Nd2 {[%clk 0:01:51]} 32... c6 {[%clk 0:01:14.9]} 33. Ke3 {[%clk 0:01:46.5]}
33... cxd5 {[%clk 0:01:14.8]} 34. Bxd5 {[%clk 0:01:41.9]} 34... Ng4+ {[%clk
0:01:09]} 35. Ke2 {[%clk 0:01:33.6]} 35... Nf6 {[%clk 0:01:06.6]} 36. Ke3 {[%clk
0:01:27.8]} 36... b5 {[%clk 0:01:04.2]} 37. Bc6 {[%clk 0:01:20.1]} 37... bxc4
{[%clk 0:01:00.2]} 38. b5 {[%clk 0:01:20.2]} 38... Bxb5 {[%clk 0:00:44.2]} 39.
Bxb5 {[%clk 0:01:18.9]} 39... d5 {[%clk 0:00:45.1]} 40. Bxc4 {[%clk 0:01:07]}
40... dxc4 {[%clk 0:00:46]} 41. Nxc4 {[%clk 0:01:07.9]} 41... Ke6 {[%clk
0:00:46.4]} 42. h3 {[%clk 0:01:07.5]} 42... Nd5+ {[%clk 0:00:45.9]} 43. Ke4
{[%clk 0:01:07.5]} 43... Nc3+ {[%clk 0:00:45.3]} 44. Kf3 {[%clk 0:01:08]} 44...
h5 {[%clk 0:00:33.5]} 45. Nb6 {[%clk 0:01:07.8]} 45... Kf5 {[%clk 0:00:29.4]}
46. Nc4 {[%clk 0:01:05.2]} 46... Nd5 {[%clk 0:00:20.6]} 47. Nd6+ {[%clk
0:01:03.7]} 47... Ke6 {[%clk 0:00:21.2]} 48. Ne4 {[%clk 0:01:03.8]} 48... Kf5
{[%clk 0:00:21.8]} 49. Nc5 {[%clk 0:01:01.6]} 49... Nf6 {[%clk 0:00:20.5]} 50.
Ke3 {[%clk 0:00:59.1]} 50... g5 {[%clk 0:00:19.1]} 51. Nd3 {[%clk 0:00:57.7]}
51... Nd5+ {[%clk 0:00:18.7]} 52. Ke2 {[%clk 0:00:58.3]} 52... e4 {[%clk
0:00:18.5]} 53. Nc5 {[%clk 0:00:57.6]} 53... Ke5 {[%clk 0:00:17.9]} 54. Nd7+
{[%clk 0:00:58.1]} 54... Ke6 {[%clk 0:00:15.9]} 55. Nc5+ {[%clk 0:00:57.1]}
55... Kf5 {[%clk 0:00:16.5]} 56. Nb3 {[%clk 0:00:54.5]} 56... h4 {[%clk
0:00:15.8]} 57. Nd4+ {[%clk 0:00:45.8]} 57... Ke5 {[%clk 0:00:15.3]} 58. Nc6+
{[%clk 0:00:45.9]} 58... Kd6 {[%clk 0:00:15.9]} 59. Nd8 {[%clk 0:00:45.9]} 59...
Ke7 {[%clk 0:00:15.1]} 60. Nb7 {[%clk 0:00:44.4]} 60... Ke6 {[%clk 0:00:13.4]}
61. Nd8+ {[%clk 0:00:40.8]} 61... Ke5 {[%clk 0:00:12.6]} 62. Nf7+ {[%clk
0:00:39.8]} 62... Kf6 {[%clk 0:00:13]} 63. Nd6 {[%clk 0:00:40.2]} 63... Ke5
{[%clk 0:00:12.7]} 64. Nc4+ {[%clk 0:00:39.8]} 64... Kd4 {[%clk 0:00:12.8]} 65.
Nd6 {[%clk 0:00:39.9]} 65... hxg3 {[%clk 0:00:13]} 66. fxg3 {[%clk 0:00:39.9]}
66... Nc3+ {[%clk 0:00:13.6]} 67. Ke1 {[%clk 0:00:40.3]} 67... Ke3 {[%clk
0:00:09.1]} 68. Nf7 {[%clk 0:00:38.7]} 68... Kf3 {[%clk 0:00:07.5]} 69. Nxg5+
{[%clk 0:00:32.2]} 69... Kxg3 {[%clk 0:00:07.7]} 70. Kd2 {[%clk 0:00:32.8]}
70... Kh4 {[%clk 0:00:06]} 71. Nxe4 {[%clk 0:00:28.8]} 71... Nxe4+ {[%clk
0:00:05.8]} 72. Ke3 {[%clk 0:00:29.6]} 72... Nd2 {[%clk 0:00:05.9]} 73. Kxd2
{[%clk 0:00:29.7]} 73... Kxh3 {[%clk 0:00:06.8]} 1/2-1/2